fUST/lending_fUST_20240620
["ID","MTS","AMOUNT","RATE_DAILY","PERIOD"]
[329986271,1718897452250,-345.88302052,0.00055342,120]
[329986272,1718897452260,-2228.83,0.00055616,120]
[329986273,1718897452269,-2228.83,0.0005589,120]
[329986274,1718897452279,-1330.97360987,0.00057023,120]
[329986275,1718897452288,-265.86370245,0.00057117,120]
[329986276,1718897452298,-163.71124378,0.00057229,120]
[329986277,1718897452307,-2174.6,0.00057259,120]
[329986278,1718897452316,-2174.6,0.00057259,120]
[329986279,1718897452326,-2174.6,0.00057259,120]
[329986280,1718897452336,-2174.6,0.00057259,120]
[329986281,1718897452346,-2174.69198006,0.00057259,120]
[329986282,1718897452355,-788.73,0.0005726,120]
[329986283,1718897452365,-549.76,0.0005726,120]
[329986284,1718897452375,-520.47,0.0005726,120]
[329986285,1718897452385,-500.0,0.0005726,60]
[329986286,1718897452394,-660.34,0.0005726,120]
[329986287,1718897452404,-500.0,0.0005726,120]
[329986288,1718897452414,-2540.08984604,0.0005726,120]
[329986289,1718897452426,-108.30015396,0.0005726,120]
[329986290,1718897452436,-500.0,0.0005726,120]
[329986291,1718897452445,-987.5,0.0005726,120]
[329986292,1718897452456,-979.16,0.0005726,2]
[329986293,1718897452465,-628.91,0.0005726,120]
[329986294,1718897452475,-1592.49,0.0005726,120]
[329986295,1718897452486,-151.0,0.0005726,120]
[329986296,1718897452495,-500.0,0.0005726,120]
[329986297,1718897452505,-151.0,0.0005726,120]
[329986298,1718897452515,-7499.998137,0.0005726,120]
[329986299,1718897452525,-7499.998137,0.0005726,120]
[329986300,1718897452534,-1145.730126,0.0005726,120]
[329986301,1718897452543,-1145.730126,0.0005726,120]
[329986302,1718897452554,-500.0,0.0005726,120]
[329986303,1718897452564,-151.0,0.0005726,120]
[329986304,1718897452575,-1297.44,0.0005726,21]
[329986305,1718897452585,-2378.61,0.0005726,120]
[329986306,1718897452594,-2502.11,0.0005726,120]
[329986307,1718897452604,-500.0,0.0005726,120]
[329986308,1718897452613,-500.0,0.0005726,120]
[329986309,1718897452624,-516.43,0.0005726,120]
[329986310,1718897452634,-500.0,0.0005726,120]
[329986311,1718897452644,-500.0,0.0005726,120]
[329986312,1718897452653,-151.0,0.0005726,120]
[329986313,1718897452662,-500.0,0.0005726,120]
[329986314,1718897452673,-500.0,0.0005726,120]
[329986315,1718897452684,-500.0,0.0005726,120]
[329986316,1718897452696,-2259.4,0.0005726,120]
[329986317,1718897452706,-1052.92,0.0005726,120]
[329986318,1718897452715,-500.0,0.0005726,120]
[329986319,1718897452724,-3684.15,0.0005726,120]
[329986320,1718897452733,-942.99,0.0005726,120]
[329986321,1718897452743,-564.27,0.0005726,120]
[329986322,1718897452752,-549.785826,0.0005726,120]
[329986323,1718897452764,-500.0,0.0005726,120]
[329986324,1718897452776,-500.0,0.0005726,120]
[329986325,1718897452786,-549.785826,0.0005726,120]
[329986326,1718897452796,-151.0,0.0005726,120]
[329986327,1718897452807,-2560.07,0.0005726,120]
[329986328,1718897452817,-151.0,0.0005726,120]
[329986329,1718897452826,-151.0,0.0005726,120]
[329986330,1718897452835,-953.87,0.0005726,120]
[329986331,1718897452845,-421.64564,0.0005726,120]
[329986332,1718897452855,-421.64564,0.0005726,120]
[329986333,1718897452864,-500.0,0.0005726,120]
[329986334,1718897452873,-500.0,0.0005726,120]
[329986335,1718897452882,-4385.27,0.0005726,120]
[329986336,1718897452892,-589.25,0.0005726,120]
[329986337,1718897452901,-151.0,0.0005726,120]
[329986338,1718897452910,-1699.83,0.0005726,120]
[329986339,1718897452919,-11643.47021514,0.0005726,120]
[329986340,1718897452932,-10734.93508777,0.0005726,120]
[329986341,1718897452945,-297.91664767,0.0005726,120]
[329986342,1718897452958,-524.27804942,0.0005726,120]
[329986343,1718897452967,-500.0,0.0005726,2]
[329986344,1718897452976,-169.43177386,0.0005726,120]
[329986345,1718897452985,-4424.10400928,0.00057529,120]
[329986346,1718897452995,-788.73,0.00057534,120]
[329986347,1718897453005,-549.76,0.00057534,120]
[329986348,1718897453015,-520.47,0.00057534,120]
[329986349,1718897453024,-660.34,0.00057534,120]
[329986350,1718897453034,-500.0,0.00057534,120]
[329986351,1718897453044,-2648.39,0.00057534,120]
[329986352,1718897453054,-500.0,0.00057534,120]
[329986353,1718897453064,-987.5,0.00057534,120]
[329986354,1718897453074,-979.16,0.00057534,2]
[329986355,1718897453084,-628.91,0.00057534,120]
[329986356,1718897453094,-1592.49,0.00057534,120]
[329986357,1718897453103,-500.0,0.00057534,120]
[329986358,1718897453112,-500.0,0.00057534,120]
[329986359,1718897453122,-1297.44,0.00057534,21]
[329986360,1718897453131,-2378.61,0.00057534,120]
[329986361,1718897453140,-2502.11,0.00057534,120]
[329986362,1718897453149,-500.0,0.00057534,120]
[329986363,1718897453159,-500.0,0.00057534,120]
[329986364,1718897453169,-516.43,0.00057534,120]
[329986365,1718897453179,-300.43009125,0.00057534,120]
[329986366,1718897453188,-500.0,0.00057534,120]
[329986367,1718897453196,-208.967099,0.00057534,120]
[329986368,1718897453206,-208.967099,0.00057534,120]
[329986369,1718897453216,-500.0,0.00057534,120]
[329986370,1718897453225,-500.0,0.00057534,120]
[329986371,1718897453235,-151.920282,0.00057534,120]
[329986372,1718897453244,-500.0,0.00057534,120]
[329986373,1718897453253,-2131.518048,0.00057534,120]
[329986374,1718897453262,-2259.4,0.00057534,120]
[329986375,1718897453272,-2131.518048,0.00057534,120]
[329986376,1718897453282,-1052.92,0.00057534,120]
[329986377,1718897453291,-500.0,0.00057534,120]
[329986378,1718897453301,-3684.15,0.00057534,120]
[329986379,1718897453311,-942.99,0.00057534,120]
[329986380,1718897453321,-564.27,0.00057534,120]
[329986381,1718897453330,-500.0,0.00057534,120]
[329986382,1718897453340,-500.0,0.00057534,120]
[329986383,1718897453350,-2560.07,0.00057534,120]
[329986384,1718897453360,-953.87,0.00057534,120]
[329986385,1718897453370,-500.0,0.00057534,120]
[329986386,1718897453380,-500.0,0.00057534,120]
[329986387,1718897453463,-4385.27,0.00057534,120]
[329986388,1718897453473,-589.25,0.00057534,120]
[329986389,1718897453483,-1699.83,0.00057534,120]
[329986390,1718897453492,-950.243027,0.00057534,120]
[329986391,1718897453503,-23200.6,0.00057534,120]
[329986392,1718897453512,-500.0,0.00057534,2]
[329986393,1718897453522,-950.243027,0.00057534,120]
[329986394,1718897453531,-151.0,0.00057589,120]
[329986395,1718897453540,-151.0,0.00057589,120]
[329986396,1718897453550,-500.0,0.00057649,46]
[329986397,1718897453559,-1000.0,0.00057672,30]
[329986398,1718897453568,-153.0,0.0005777,7]
[329986399,1718897453578,-153.0,0.00057789,7]
[329986400,1718897453587,-160.0,0.000578,56]
[329986401,1718897453597,-252.0,0.000578,37]
[329986402,1718897453606,-268.0,0.000578,37]
[329986403,1718897453617,-517.0,0.00057808,120]
[329986404,1718897453626,-788.73,0.00057808,120]
[329986405,1718897453636,-549.76,0.00057808,120]
[329986406,1718897453645,-520.47,0.00057808,120]
[329986407,1718897453654,-660.34,0.00057808,120]
[329986408,1718897453664,-500.0,0.00057808,120]
[329986409,1718897453674,-2648.39,0.00057808,120]
[329986410,1718897453684,-500.0,0.00057808,120]
[329986411,1718897453693,-987.5,0.00057808,120]
[329986412,1718897453702,-979.16,0.00057808,2]
[329986413,1718897453713,-628.91,0.00057808,120]
[329986414,1718897453723,-1592.49,0.00057808,120]
[329986415,1718897453732,-151.0,0.00057808,120]
[329986416,1718897453742,-213.8781557,0.00057808,120]
[329986417,1718897453751,-229.355019,0.00057808,120]
[329986418,1718897453764,-7499.998137,0.00057808,120]
[329986419,1718897453778,-7499.998137,0.00057808,120]
[329986420,1718897453787,-1145.730126,0.00057808,120]
[329986421,1718897453796,-1145.730126,0.00057808,120]
[329986422,1718897453808,-279.74493551,0.00057808,120]
[329986423,1718897453818,-151.0,0.00057808,120]
[329986424,1718897453828,-1297.44,0.00057808,21]
[329986425,1718897453837,-2378.61,0.00057808,120]
[329986426,1718897453846,-2502.11,0.00057808,120]
[329986427,1718897453855,-500.0,0.00057808,120]
[329986428,1718897453865,-500.0,0.00057808,120]
[329986429,1718897453875,-516.43,0.00057808,120]
[329986430,1718897453885,-500.0,0.00057808,120]
[329986431,1718897453895,-158.553397,0.00057808,120]
[329986432,1718897453904,-500.0,0.00057808,120]
[329986433,1718897453914,-500.0,0.00057808,120]
[329986434,1718897453923,-500.0,0.00057808,120]
[329986435,1718897453933,-2259.4,0.00057808,120]
[329986436,1718897453943,-1052.92,0.00057808,120]
[329986437,1718897453952,-500.0,0.00057808,120]
[329986438,1718897453965,-3684.15,0.00057808,120]
[329986439,1718897453975,-942.99,0.00057808,120]
[329986440,1718897453985,-564.27,0.00057808,120]
[329986441,1718897453994,-549.785826,0.00057808,120]
[329986442,1718897454005,-500.0,0.00057808,120]
[329986443,1718897454015,-500.0,0.00057808,120]
[329986444,1718897454025,-549.785826,0.00057808,120]
[329986445,1718897454035,-151.0,0.00057808,120]
[329986446,1718897454044,-2560.07,0.00057808,120]
[329986447,1718897454054,-151.0,0.00057808,120]
[329986448,1718897454064,-151.0,0.00057808,120]
[329986449,1718897454075,-953.87,0.00057808,120]
[329986450,1718897454084,-421.64564,0.00057808,120]
[329986451,1718897454094,-421.64564,0.00057808,120]
[329986452,1718897454103,-500.0,0.00057808,120]
[329986453,1718897454113,-500.0,0.00057808,120]
[329986454,1718897454122,-4385.27,0.00057808,120]
[329986455,1718897454132,-589.25,0.00057808,120]
[329986456,1718897454143,-151.0,0.00057808,120]
[329986457,1718897454153,-1699.83,0.00057808,120]
[329986458,1718897454163,-23200.6,0.00057808,120]
[329986459,1718897454173,-500.0,0.00057808,2]
[329986460,1718897454182,-1000.0,0.00057829,120]
[329986461,1718897454192,-788.73,0.00058082,120]
[329986462,1718897454202,-549.76,0.00058082,120]
[329986463,1718897454214,-151.0,0.00058082,120]
[329986464,1718897454223,-151.0,0.00058082,120]
[329986465,1718897454236,-520.47,0.00058082,120]
[329986466,1718897454245,-151.0,0.00058082,60]
[329986467,1718897454254,-151.0,0.00058082,120]
[329986468,1718897454264,-660.34,0.00058082,120]
[329986469,1718897454273,-500.0,0.00058082,120]
[329986470,1718897454283,-2648.39,0.00058082,120]
[329986471,1718897454292,-500.0,0.00058082,120]
[329986472,1718897454301,-987.5,0.00058082,120]
[329986473,1718897454311,-979.16,0.00058082,2]
[329986474,1718897454320,-628.91,0.00058082,120]
[329986475,1718897454330,-1592.49,0.00058082,120]
[329986476,1718897454339,-1297.44,0.00058082,21]
[329986477,1718897454350,-2378.61,0.00058082,120]
[329986478,1718897454360,-2502.11,0.00058082,120]
[329986479,1718897454370,-500.0,0.00058082,120]
[329986480,1718897454380,-570.22,0.00058082,120]
[329986481,1718897454390,-516.43,0.00058082,120]
[329986482,1718897454400,-500.0,0.00058082,120]
[329986483,1718897454410,-208.967099,0.00058082,120]
[329986484,1718897454420,-208.967099,0.00058082,120]
[329986485,1718897454430,-500.0,0.00058082,120]
[329986486,1718897454440,-500.0,0.00058082,120]
[329986487,1718897454449,-500.0,0.00058082,120]
[329986488,1718897454461,-2131.518048,0.00058082,120]
[329986489,1718897454470,-2259.4,0.00058082,120]
[329986490,1718897454480,-2131.518048,0.00058082,120]
[329986491,1718897454490,-1052.92,0.00058082,120]
[329986492,1718897454499,-500.0,0.00058082,120]
[329986493,1718897454509,-3684.15,0.00058082,120]
[329986494,1718897454519,-942.99,0.00058082,120]
[329986495,1718897454528,-564.27,0.00058082,120]
[329986496,1718897454539,-500.0,0.00058082,120]
[329986497,1718897454548,-500.0,0.00058082,120]
[329986498,1718897454559,-2560.07,0.00058082,120]
[329986499,1718897454569,-953.87,0.00058082,120]
[329986500,1718897454579,-500.0,0.00058082,120]
[329986501,1718897454590,-500.0,0.00058082,120]
[329986502,1718897454600,-4385.27,0.00058082,120]
[329986503,1718897454610,-589.25,0.00058082,120]
[329986504,1718897454620,-1699.83,0.00058082,120]
[329986505,1718897454630,-950.243027,0.00058082,120]
[329986506,1718897454640,-23200.6,0.00058082,120]
[329986507,1718897454650,-500.0,0.00058082,2]
[329986508,1718897454660,-950.243027,0.00058082,120]
[329986509,1718897454670,-788.73,0.00058356,120]
[329986510,1718897454681,-549.76,0.00058356,120]
[329986511,1718897454690,-520.47,0.00058356,120]
[329986512,1718897454700,-660.34,0.00058356,120]
[329986513,1718897454710,-205.43591188,0.00058356,120]
[329986514,1718897454720,-2648.39,0.00058356,120]
[329986515,1718897454729,-500.0,0.00058356,120]
[329986516,1718897454739,-987.5,0.00058356,120]
[329986517,1718897454748,-151.0,0.00058356,120]
[329986518,1718897454758,-151.0,0.00058356,120]
[329986519,1718897454771,-979.16,0.00058356,2]
[329986520,1718897454781,-628.91,0.00058356,120]
[329986521,1718897454790,-1592.49,0.00058356,120]
[329986522,1718897454800,-7499.998137,0.00058356,120]
[329986523,1718897454811,-7499.998137,0.00058356,120]
[329986524,1718897454821,-1297.44,0.00058356,21]
[329986525,1718897454831,-2378.61,0.00058356,120]
[329986526,1718897454841,-2502.11,0.00058356,120]
[329986527,1718897454852,-500.0,0.00058356,120]
[329986528,1718897454862,-516.43,0.00058356,120]
[329986529,1718897454871,-500.0,0.00058356,120]
[329986530,1718897454881,-500.0,0.00058356,120]
[329986531,1718897454891,-554.9169488,0.00058356,120]
[329986532,1718897454899,-500.0,0.00058356,120]
[329986533,1718897454978,-2259.4,0.00058356,120]
[329986534,1718897454988,-1052.92,0.00058356,120]
[329986535,1718897454998,-500.0,0.00058356,120]
[329986536,1718897455008,-3684.15,0.00058356,120]
[329986537,1718897455017,-942.99,0.00058356,120]
[329986538,1718897455027,-564.27,0.00058356,120]
[329986539,1718897455037,-549.785826,0.00058356,120]
[329986540,1718897455047,-500.0,0.00058356,120]
[329986541,1718897455057,-500.0,0.00058356,120]
[329986542,1718897455066,-549.785826,0.00058356,120]
[329986543,1718897455075,-151.0,0.00058356,120]
[329986544,1718897455085,-2560.07,0.00058356,120]
[329986545,1718897455095,-151.0,0.00058356,120]
[329986546,1718897455105,-151.0,0.00058356,120]
[329986547,1718897455115,-953.87,0.00058356,120]
[329986548,1718897455124,-421.64564,0.00058356,120]
[329986549,1718897455134,-421.64564,0.00058356,120]
[329986550,1718897455144,-500.0,0.00058356,120]
[329986551,1718897455153,-500.0,0.00058356,120]
[329986552,1718897455163,-4385.27,0.00058356,120]
[329986553,1718897455173,-589.25,0.00058356,120]
[329986554,1718897455182,-151.0,0.00058356,120]
[329986555,1718897455193,-1699.83,0.00058356,120]
[329986556,1718897455203,-23200.6,0.00058356,120]
[329986557,1718897455214,-500.0,0.00058356,2]
[329986558,1718897455224,-205.993024,0.00058629,120]
[329986559,1718897455234,-1145.730126,0.00058629,120]
[329986560,1718897455244,-1145.730126,0.00058629,120]
[329986561,1718897455254,-788.73,0.0005863,120]
[329986562,1718897455263,-549.76,0.0005863,120]
[329986563,1718897455273,-520.47,0.0005863,120]
[329986564,1718897455283,-660.34,0.0005863,120]
[329986565,1718897455292,-2648.39,0.0005863,120]
[329986566,1718897455302,-500.0,0.0005863,120]
[329986567,1718897455312,-987.5,0.0005863,120]
[329986568,1718897455321,-979.16,0.0005863,2]
[329986569,1718897455331,-628.91,0.0005863,120]
[329986570,1718897455340,-1243.04185931,0.0005863,120]
[329986571,1718897455810,-334.46,0.00054784,3]
[329986572,1718897455824,-259.3183501,0.00055616,120]
[329986573,1718897455841,-240.6816499,0.00055616,120]
[329986574,1718897455858,-500.0,0.0005589,120]
[329986575,1718897455875,-2228.83,0.00056164,120]
[329986576,1718897455891,-500.0,0.00056164,120]
[329986577,1718897455904,-1856.74114236,0.00056438,120]
[329986578,1718897456004,-20000.18763235,0.00054694,5]
[329986579,1718897456019,-4556.02012643,0.00054694,5]
[329986580,1718897456032,-500.0,0.00054794,21]
[329986581,1718897456044,-500.0,0.00055068,21]
[329986582,1718897456057,-500.0,0.00055342,21]
[329986583,1718897456070,-500.0,0.00055616,21]
[329986584,1718897456082,-500.0,0.0005589,21]
[329986585,1718897456095,-571.36,0.00056164,21]
[329986586,1718897456108,-372.08885764,0.00056438,120]
[329986587,1718897456121,-640.96565223,0.00056438,120]
[329986588,1718897456134,-2228.83,0.00056712,120]
[329986589,1718897456148,-2228.83,0.00056986,120]
[329986590,1718897456159,-2228.83,0.0005726,120]
[329986591,1718897456170,-2228.83,0.00057534,120]
[329986592,1718897456179,-2228.83,0.00057808,120]
[329986593,1718897456189,-432.21081576,0.00058082,120]
[329986595,1718898345200,-223.6359127,0.0002,2]
[329986596,1718898345220,-167.332334,0.00021096,2]
[329986597,1718898345240,-242.65197193,0.00022,2]
[329986598,1718898345262,-178.270507,0.00024841,2]
[329986599,1718898345281,-4866.40446886,0.00025,2]
[329986600,1718898345302,-277.7968395,0.00025036,2]
[329986601,1718898345322,-1359.1892334,0.00025045,2]
[329986602,1718898345344,-300.0,0.00025089,2]
[329986603,1718898345364,-300.0,0.00025089,2]
[329986604,1718898345384,-5953.94848112,0.0002509,2]
[329986605,1718898345406,-437.8858676,0.00025122,2]
[329986606,1718898345428,-216.738751,0.00025205,2]
[329986607,1718898345448,-164.0434323,0.00027847,2]
[329986608,1718898345467,-14714.73535139,0.0002877,2]
[329986609,1718898345487,-563.46227403,0.000359,2]
[329986610,1718898345511,-12848.50126528,0.00036,30]
[329986611,1718898390107,-158.53305613,0.00021096,2]
[329986612,1718898430165,-8.79927787,0.00021096,2]
[329986613,1718898430187,-549.2512,0.00024561,30]
[329986614,1718898430211,-300.0,0.000282,2]
[329986615,1718898430236,-159.15533919,0.00036,30]
[329986616,1718898442113,-357.95967213,0.00036,30]
[329986617,1718898448106,-5429.61902886,0.00036,30]
[329986652,1718898631916,-223.0,0.0002818,2]
[329986654,1718898631926,-480.756011,0.00028181,7]
[329986671,1718898632095,-102.02767343,0.00028181,7]
[329986709,1718898639320,-7440.23257709,0.00028181,7]
[329986710,1718898639331,-12729.66332728,0.00028181,30]
[329986711,1718898639341,-154.94537853,0.00028181,2]
[329986712,1718898639350,-958.24865532,0.00028181,2]
[329986713,1718898639360,-395.0164689,0.00033817,2]
[329986714,1718898639371,-555.48555584,0.000339,2]
[329986715,1718898639381,-11487.99053385,0.00036,30]
[329986716,1718898639391,-555.48555584,0.000389,2]
[329986717,1718898639402,-555.48555584,0.000439,2]
[329986718,1718898639413,-153.0,0.00044116,2]
[329986719,1718898639423,-164.0,0.00047,90]
[329986720,1718898639434,-1000.0,0.00054,54]
[329986721,1718898639445,-450.7698192,0.00054199,2]
[329986722,1718898639456,-597.2634898,0.00054299,120]
[329986723,1718898639467,-41283.57,0.000543,120]
[329986724,1718898639478,-8866.0,0.000543,120]
[329986726,1718898639490,-450.76981919,0.00054323,2]
[329986727,1718898639501,-450.76981919,0.00054447,2]
[329986728,1718898639512,-450.76981919,0.0005457,2]
[329986729,1718898639524,-450.76981919,0.00054694,2]
[329986730,1718898639535,-2079.63,0.00054784,3]
[329986731,1718898639545,-507.68897827,0.00054794,120]
[329986732,1718898639556,-500.0,0.00054794,120]
[329986733,1718898639569,-500.0,0.00054794,120]
[329986734,1718898639580,-519.27342515,0.00054794,120]
[329986735,1718898639591,-505.44161768,0.00054794,120]
[329986736,1718898639601,-500.0,0.00054794,120]
[329986737,1718898639612,-238.56231415,0.00054794,120]
[329986738,1718898639623,-580.67754384,0.00054794,120]
[329986739,1718898639635,-500.0,0.00054794,120]
[329986740,1718898639646,-351.29835581,0.00054794,120]
[329986741,1718898639657,-500.0,0.00054794,120]
[329986742,1718898639668,-522.67,0.00054794,120]
[329986743,1718898639679,-500.0,0.00054794,120]
[329986744,1718898639691,-500.0,0.00054794,120]
[329986745,1718898639702,-500.0,0.00054794,7]
[329986746,1718898639713,-500.0,0.00054794,120]
[329986747,1718898639725,-500.0,0.00054794,120]
[329986748,1718898639736,-500.0,0.00054794,120]
[329986749,1718898639748,-500.0,0.00054794,120]
[329986750,1718898639759,-500.0,0.00054794,120]
[329986751,1718898639770,-500.0,0.00054794,120]
[329986752,1718898639780,-500.0,0.00054794,120]
[329986753,1718898639791,-500.0,0.00054794,120]
[329986754,1718898639802,-500.0,0.00054794,120]
[329986755,1718898639812,-500.0,0.00054794,120]
[329986757,1718898639828,-500.0,0.00054794,120]
[329986758,1718898639838,-500.0,0.00054794,120]
[329986759,1718898639849,-500.0,0.00054794,120]
[329986760,1718898639860,-1450.83,0.00054794,120]
[329986761,1718898639870,-520.15783121,0.00054794,120]
[329986762,1718898639880,-500.0,0.00054794,120]
[329986763,1718898639890,-507.03353636,0.00054794,120]
[329986764,1718898639901,-500.0,0.00054794,120]
[329986765,1718898639912,-500.0,0.00054794,120]
[329986766,1718898639922,-500.0,0.00054794,120]
[329986767,1718898639932,-500.0,0.00054794,120]
[329986768,1718898639942,-507.19216329,0.00054794,2]
[329986769,1718898639953,-547.99,0.00054794,120]
[329986770,1718898639963,-500.0,0.00054794,120]
[329986772,1718898639973,-500.0,0.00054794,120]
[329986773,1718898639983,-500.0,0.00054794,120]
[329986774,1718898639993,-500.0,0.00054794,120]
[329986775,1718898640112,-500.0,0.00054794,120]
[329986776,1718898640124,-478.98554951,0.00054794,120]
[329986777,1718898640136,-523.8606731,0.00054794,120]
[329986778,1718898640149,-500.0,0.00054794,120]
[329986779,1718898640160,-500.0,0.00054794,120]
[329986780,1718898640170,-500.0,0.00054794,120]
[329986781,1718898640180,-501.99178325,0.00054794,120]
[329986782,1718898640190,-500.0,0.00054794,120]
[329986783,1718898640202,-339.09202335,0.00054794,120]
[329986784,1718898640213,-500.0,0.00054794,120]
[329986785,1718898640222,-500.0,0.00054794,120]
[329986786,1718898640235,-500.0,0.00054794,120]
[329986787,1718898640246,-500.0,0.00054794,120]
[329986788,1718898640255,-500.0,0.00054794,120]
[329986789,1718898640265,-876.99,0.00054794,120]
[329986790,1718898640275,-500.0,0.00054794,120]
[329986791,1718898640285,-500.0,0.00054794,120]
[329986792,1718898640295,-500.0,0.00054794,120]
[329986793,1718898640305,-500.0,0.00054794,120]
[329986794,1718898640317,-500.0,0.00054794,120]
[329986795,1718898640328,-500.0,0.00054794,120]
[329986796,1718898640339,-524.64,0.00054794,120]
[329986797,1718898640350,-11649.46,0.00054794,120]
[329986798,1718898640362,-500.0,0.00054794,120]
[329986799,1718898640372,-500.0,0.00054794,120]
[329986800,1718898640382,-500.0,0.00054794,120]
[329986801,1718898640393,-690.39,0.00054794,21]
[329986802,1718898640403,-1463.43,0.00054794,120]
[329986803,1718898640413,-255.63968812,0.00054794,120]
[329986804,1718898640423,-513.73059235,0.00054794,120]
[329986805,1718898640432,-1363.07,0.00054794,120]
[329986806,1718898640443,-500.0,0.00054794,120]
[329986807,1718898640454,-500.0,0.00054794,120]
[329986808,1718898640463,-500.0,0.00054794,120]
[329986809,1718898640474,-500.0,0.00054794,120]
[329986810,1718898640484,-500.0,0.00054794,120]
[329986811,1718898640494,-500.0,0.00054794,120]
[329986812,1718898640504,-500.0,0.00054794,120]
[329986813,1718898640514,-500.0,0.00054794,120]
[329986814,1718898640524,-500.0,0.00054794,120]
[329986815,1718898640533,-500.0,0.00054794,120]
[329986816,1718898640543,-500.0,0.00054794,120]
[329986817,1718898640553,-500.0,0.00054794,120]
[329986818,1718898640562,-500.0,0.00054794,120]
[329986819,1718898640578,-200.0,0.00054794,7]
[329986820,1718898640589,-490.50475209,0.00054794,120]
[329986821,1718898640600,-500.0,0.00054794,120]
[329986822,1718898640611,-500.0,0.00054794,120]
[329986823,1718898640630,-500.0,0.00054794,120]
[329986824,1718898640641,-500.0,0.00054794,120]
[329986825,1718898640652,-500.0,0.00054794,120]
[329986826,1718898640663,-500.0,0.00054794,120]
[329986827,1718898640673,-385.58661485,0.00054794,120]
[329986828,1718898640683,-515.34793791,0.00054794,120]
[329986829,1718898640693,-500.0,0.00054794,120]
[329986830,1718898640703,-514.60013356,0.00054794,120]
[329986831,1718898640714,-500.0,0.00054794,120]
[329986832,1718898640724,-500.0,0.00054794,120]
[329986833,1718898640734,-500.0,0.00054794,120]
[329986834,1718898640744,-500.0,0.00054794,120]
[329986835,1718898640754,-500.0,0.00054794,20]
[329986836,1718898640764,-500.0,0.00054794,120]
[329986837,1718898640774,-500.0,0.00054794,120]
[329986838,1718898640784,-500.0,0.00054794,2]
[329986839,1718898640794,-1185.85,0.00054794,120]
[329986840,1718898640803,-500.0,0.00054794,120]
[329986841,1718898640813,-228.45343349,0.00054794,120]
[329986842,1718898640826,-464.56041566,0.00054794,120]
[329986843,1718898640835,-500.0,0.00054794,120]
[329986844,1718898640845,-1959.41,0.00054794,120]
[329986845,1718898640854,-500.0,0.00054794,120]
[329986846,1718898640864,-500.0,0.00054794,120]
[329986847,1718898640875,-573.7,0.00054794,120]
[329986848,1718898640885,-501.31,0.00054794,120]
[329986849,1718898640895,-501.31,0.00054794,120]
[329986850,1718898640905,-501.31,0.00054794,120]
[329986851,1718898640915,-501.31,0.00054794,120]
[329986852,1718898640925,-501.31,0.00054794,120]
[329986853,1718898640934,-501.31,0.00054794,120]
[329986854,1718898640945,-509.73294023,0.00054794,120]
[329986855,1718898640954,-506.38989074,0.00054794,120]
[329986856,1718898640964,-500.0,0.00054794,120]
[329986857,1718898640973,-1300.97,0.00054794,120]
[329986858,1718898640983,-634.83654616,0.00054794,120]
[329986859,1718898640993,-503.40785745,0.00054794,30]
[329986860,1718898641003,-500.0,0.00054794,120]
[329986861,1718898641013,-500.0,0.00054794,120]
[329986862,1718898641022,-500.0,0.00054794,120]